fUSD/lending_fUSD_20240629
["ID","MTS","AMOUNT","RATE_DAILY","PERIOD"]
[330649729,1719687046650,-500.0,0.00013881,3]
[330649730,1719687046660,-500.0,0.00013881,3]
[330649731,1719687046670,-500.0,0.00013881,3]
[330649732,1719687046682,-500.0,0.00013881,3]
[330649733,1719687046691,-500.0,0.00013881,3]
[330649734,1719687046700,-900.74,0.00013881,3]
[330649735,1719687046710,-603.22,0.00013881,3]
[330649736,1719687046720,-500.0,0.00013881,3]
[330649737,1719687046730,-500.0,0.00013881,3]
[330649738,1719687046740,-1697.27,0.00013881,3]
[330649739,1719687046750,-179.41252263,0.00013881,3]
[330649740,1719687048003,-1000.0,0.00013781,2]
[330649741,1719687048013,-1734.29,0.00013786,3]
[330649742,1719687048023,-560.4,0.00013787,3]
[330649743,1719687048033,-1229.97747737,0.00013881,3]
[330649744,1719687048042,-500.0,0.00013881,3]
[330649745,1719687048052,-500.0,0.00013881,3]
[330649746,1719687048062,-500.0,0.00013881,3]
[330649747,1719687048072,-500.0,0.00013881,3]
[330649748,1719687048081,-1527.33,0.00013881,3]
[330649749,1719687048091,-500.0,0.00013881,3]
[330649750,1719687048101,-1431.13,0.00013881,3]
[330649751,1719687048110,-719.86,0.00013881,3]
[330649752,1719687048120,-737.48,0.00013881,3]
[330649753,1719687048129,-676.5,0.00013881,3]
[330649754,1719687048139,-1390.99,0.00013881,3]
[330649755,1719687048149,-1308.3,0.00013881,3]
[330649756,1719687048159,-500.0,0.00013881,3]
[330649757,1719687048168,-858.88,0.00013881,3]
[330649758,1719687048178,-500.0,0.00013881,3]
[330649759,1719687048187,-250.0,0.00013881,3]
[330649760,1719687048196,-1499.02,0.00013881,3]
[330649761,1719687048206,-500.0,0.00013881,3]
[330649762,1719687048215,-500.0,0.00013881,3]
[330649763,1719687048224,-980.04,0.00013881,3]
[330649764,1719687048234,-500.0,0.00013881,3]
[330649765,1719687048243,-1545.05,0.00013881,3]
[330649766,1719687048253,-500.0,0.00013881,3]
[330649767,1719687048263,-1216.75,0.00013881,3]
[330649768,1719687048276,-500.0,0.00013881,3]
[330649769,1719687048286,-1938.75,0.00013881,3]
[330649770,1719687048295,-500.0,0.00013881,3]
[330649771,1719687048306,-1481.4,0.00013881,3]
[330649772,1719687048317,-1020.43,0.00013881,3]
[330649773,1719687048327,-500.0,0.00013881,3]
[330649774,1719687048336,-2039.22,0.00013881,3]
[330649775,1719687048345,-500.0,0.00013881,3]
[330649776,1719687048356,-1183.44,0.00013881,3]
[330649777,1719687048366,-579.85,0.00013881,3]
[330649778,1719687048375,-500.0,0.00013881,3]
[330649779,1719687048384,-500.0,0.00013881,3]
[330649780,1719687048393,-638.7,0.00013881,3]
[330649781,1719687048402,-735.43,0.00013881,3]
[330649782,1719687048412,-500.0,0.00013881,3]
[330649783,1719687048421,-2207.93,0.00013881,3]
[330649784,1719687048431,-412.43849009,0.00013881,3]
[330649785,1719687048440,-500.0,0.00013881,3]
[330649786,1719687048449,-693.18,0.00013881,3]
[330649787,1719687048460,-1189.38,0.00013881,3]
[330649788,1719687048470,-1092.46,0.00013881,3]
[330649789,1719687048480,-500.0,0.00013881,3]
[330649790,1719687048490,-500.0,0.00013881,3]
[330649791,1719687048500,-500.0,0.00013881,3]
[330649792,1719687048510,-500.0,0.00013881,3]
[330649793,1719687048520,-500.0,0.00013881,3]
[330649794,1719687048530,-1840.56,0.00013881,3]
[330649795,1719687048539,-615.66,0.00013881,3]
[330649796,1719687048550,-1616.38,0.00013882,3]
[330649797,1719687048560,-1985.43,0.00013882,3]
[330649798,1719687048570,-982.13,0.00013882,3]
[330649799,1719687048580,-284.63005618,0.00013882,3]
[330649800,1719687048589,-1959.15,0.00013882,3]
[330649801,1719687048599,-500.0,0.00013882,2]
[330649802,1719687048608,-1078.71,0.00013882,3]
[330649803,1719687048618,-500.0,0.00013882,3]
[330649804,1719687048628,-500.0,0.00013882,3]
[330649805,1719687048637,-1874.57,0.00013882,3]
[330649806,1719687048647,-1844.28,0.00013882,3]
[330649807,1719687048656,-1645.59,0.00013882,3]
[330649808,1719687048666,-1463.29,0.00013882,3]
[330649809,1719687048676,-688.6,0.00013882,3]
[330649810,1719687048686,-1378.19,0.00013882,3]
[330649811,1719687048696,-775.82534122,0.00013882,3]
[330649812,1719687048708,-1125.67465878,0.00013882,3]
[330649813,1719687048718,-2477.93,0.00013882,3]
[330649814,1719687048727,-2359.39,0.00013882,3]
[330649815,1719687048737,-500.0,0.00013882,3]
[330649816,1719687048747,-513.91,0.00013882,3]
[330649817,1719687048756,-500.0,0.00013882,3]
[330649818,1719687048766,-1151.76,0.00013882,3]
[330649819,1719687048775,-1318.13,0.00013882,3]
[330649820,1719687048784,-2033.88,0.00013882,3]
[330649821,1719687048793,-1714.64,0.00013882,3]
[330649822,1719687048803,-500.0,0.00013882,3]
[330649823,1719687048812,-1429.74,0.00013882,3]
[330649824,1719687048822,-1994.02,0.00013882,3]
[330649825,1719687048832,-2776.19,0.00013882,3]
[330649826,1719687048842,-2594.05,0.00013882,3]
[330649827,1719687048851,-500.0,0.00013882,3]
[330649828,1719687048862,-558.42103072,0.00013882,3]
[330649829,1719687048872,-500.0,0.00013882,3]
[330649830,1719687048882,-500.0,0.00013882,3]
[330649831,1719687048892,-1220.73,0.00013882,3]
[330649832,1719687048901,-1079.88,0.00013882,3]
[330649833,1719687048912,-500.0,0.00013882,3]
[330649834,1719687048922,-1522.64,0.00013882,3]
[330649835,1719687048932,-2125.99,0.00013882,3]
[330649836,1719687048942,-1224.82,0.00013882,3]
[330649837,1719687048952,-1138.55,0.00013882,3]
[330649838,1719687048962,-860.77,0.00013882,3]
[330649839,1719687048972,-1170.13,0.00013882,3]
[330649840,1719687048982,-1813.3,0.00013882,3]
[330649841,1719687048991,-674.48,0.00013882,3]
[330649842,1719687049001,-500.0,0.00013882,3]
[330649843,1719687049011,-1553.38,0.00013882,3]
[330649844,1719687049020,-500.0,0.00013882,3]
[330649845,1719687049030,-587.17,0.00013882,3]
[330649846,1719687049039,-1279.42,0.00013882,3]
[330649847,1719687049048,-1132.69,0.00013882,3]
[330649848,1719687049057,-1273.86,0.00013883,3]
[330649849,1719687049067,-500.0,0.00013883,3]
[330649850,1719687049077,-1339.5,0.00013883,3]
[330649851,1719687049086,-500.0,0.00013883,3]
[330649852,1719687049096,-773.64,0.00013883,3]
[330649853,1719687049105,-505.52,0.00013883,3]
[330649854,1719687049115,-500.0,0.00013883,3]
[330649855,1719687049124,-689.13,0.00013883,3]
[330649856,1719687049135,-500.0,0.00013883,3]
[330649857,1719687049144,-500.0,0.00013883,3]
[330649858,1719687049154,-500.0,0.00013883,3]
[330649859,1719687049164,-500.0,0.00013883,3]
[330649860,1719687049173,-949.84,0.00013883,3]
[330649861,1719687049182,-500.0,0.00013883,3]
[330649862,1719687049192,-500.0,0.00013883,3]
[330649863,1719687049201,-500.0,0.00013883,3]
[330649864,1719687049210,-569.71,0.00013883,3]
[330649865,1719687049220,-1179.33,0.00013883,3]
[330649866,1719687049230,-500.0,0.00013883,3]
[330649867,1719687049240,-500.0,0.00013883,3]
[330649868,1719687049249,-435.60901468,0.00013883,3]
[330649869,1719687049262,-64.39098532,0.00013883,3]
[330649870,1719687049275,-500.0,0.00013883,3]
[330649871,1719687049285,-500.0,0.00013883,3]
[330649872,1719687049295,-222.27493977,0.00013883,3]
[330649875,1719687270194,150.5,0.0001399,30]
[330649879,1719687390196,150.5,0.00013983,30]
[330649880,1719687401103,195.26,0.00012206,2]
[330649883,1719687436770,167.79,9.749e-05,2]
[330649884,1719687441036,5913.01,0.00012201,2]
[330649885,1719687442098,443.05,0.00010271,2]
[330649886,1719687442205,443.05,0.00012535,2]
[330649887,1719687448200,1361.80406306,0.00012201,2]
[330649888,1719687448223,10000.0,0.00012201,2]
[330649889,1719687448246,10000.0,0.00012201,2]
[330649890,1719687491347,667.24758861,9.749e-05,2]
[330649891,1719687494776,1750.08927403,9.749e-05,2]
[330649892,1719687633015,526.2798675,0.00011098,2]
[330649893,1719687648086,434.93719891,0.00011098,2]
[330649894,1719687683938,265.34221772,0.00011099,2]
[330649895,1719687687527,3106.52214219,0.00011098,2]
[330649896,1719687725131,235.41524417,0.00011098,2]
[330649897,1719687741532,157.52085627,0.00011098,2]
[330649898,1719687749279,202.16431175,0.00011098,2]
[330649899,1719687752516,155.0,0.00011098,2]
[330649900,1719687756928,474.52583922,0.00011098,2]
[330649901,1719687761619,155.38658422,0.00011098,2]
[330649902,1719687783303,206.12734629,0.00011098,2]
[330649903,1719687788773,180.92782732,0.00011098,2]
[330649904,1719687809391,155.0,0.00011098,2]
[330649905,1719687816798,155.0,0.00011098,2]
[330649906,1719687863578,1069.94736295,0.00011098,2]
[330649907,1719687875064,156.87024743,0.00011098,2]
[330649908,1719687901216,366.11090361,0.00011098,2]
[330649909,1719687901334,366.37839217,0.00011098,2]
[330649910,1719687901454,155.0,0.00011098,2]
[330649911,1719687903041,263.41362794,0.00011098,2]
[330649912,1719687910789,150.24323,0.00010988,2]
[330649913,1719687914107,217.84498894,0.00011098,2]
[330649914,1719687921565,318.23554472,0.00011098,2]
[330649915,1719687924776,155.29100335,0.00011098,2]
[330649916,1719687925513,155.36589403,0.00011098,2]
[330649917,1719687926832,150.0,0.00010988,2]
[330649918,1719687928788,242.12454532,0.00011098,2]
[330649919,1719687943090,152.09217,0.00010988,2]
[330649920,1719687954507,328.54104863,0.00011098,2]
[330649921,1719688009407,155.18510128,0.00011098,2]
[330649922,1719688009856,155.0,0.00011098,2]
[330649924,1719688028689,398.74,0.00010014,2]
[330649925,1719688117959,474.16670088,0.00011098,2]
[330649926,1719688123517,201.90422772,0.00011098,2]
[330649927,1719688131055,235.00896897,0.00011098,2]
[330649928,1719688195679,805.65610875,0.00011098,2]
[330649929,1719688199897,155.0,0.00011098,2]
[330649930,1719688209916,155.0,0.00011098,2]
[330649931,1719688224832,684.6086995,0.00011098,2]
[330649939,1719688231988,-206.12734629,0.00011197,2]
[330649940,1719688231998,-363.8321875,0.00011197,2]
[330649941,1719688232008,-285.86312721,0.00011197,2]
[330649942,1719688232019,-222.61749785,0.00011199,2]
[330649943,1719688232028,-22.56978646,0.00011199,2]
[330649945,1719688232039,-163.95682853,0.00011199,2]
[330649947,1719688232048,-131.49131331,0.00011199,2]
[330649948,1719688232059,-23.50868669,0.00011199,2]
[330649949,1719688232067,-196.17673017,0.00011199,2]
[330649950,1719688232076,-155.0,0.00011199,2]
[330649951,1719688232085,-1873.13578739,0.00011871,2]
[330649952,1719688232096,-1353.21421261,0.00011871,2]
[330649953,1719688232105,-170.86,0.0001189,2]
[330649954,1719688232114,-250.0,0.00011947,2]
[330649955,1719688232123,-106.00999989,0.00011952,2]
[330649956,1719688232135,-4898.94000011,0.00011952,2]
[330649957,1719688232144,-343.71,0.00012043,2]
[330649958,1719688232153,-150.0,0.00012078,2]
[330649959,1719688232163,-250.0,0.0001209,2]
[330649960,1719688232172,-729.19,0.0001209,2]
[330649961,1719688232181,-169.1,0.0001212,2]
[330649962,1719688232190,-150.31,0.00012188,2]
[330649963,1719688232199,-155.0,0.00012273,2]
[330649964,1719688232207,-155.0,0.00012273,2]
[330649965,1719688232216,-398.74,0.00012277,2]
[330649966,1719688232225,-499.99,0.00012301,2]
[330649967,1719688232234,-186.21,0.00012745,2]
[330649968,1719688232243,-186.21,0.00012748,2]
[330649969,1719688232253,-186.21,0.00012751,2]
[330649970,1719688232262,-186.21,0.00012755,2]
[330649971,1719688232272,-186.21,0.00012758,2]
[330649972,1719688232282,-186.21,0.00012761,2]
[330649973,1719688232291,-186.21,0.00012765,2]
[330649974,1719688232301,-186.21,0.00012768,2]
[330649975,1719688232310,-186.21,0.00012771,2]
[330649976,1719688232320,-186.21,0.00012775,2]
[330649977,1719688232330,-186.21,0.00012778,2]
[330649978,1719688232341,-186.21,0.00012781,2]
[330649979,1719688232350,-186.21,0.00012785,2]
[330649980,1719688232360,-1000.0,0.00012786,2]
[330649981,1719688232370,-186.21,0.00012788,2]
[330649982,1719688232379,-186.21,0.00012791,2]
[330649983,1719688232389,-186.21,0.00012795,2]
[330649984,1719688232398,-186.21,0.00012798,2]
[330649985,1719688232407,-186.21,0.00012801,2]
[330649986,1719688232417,-186.21,0.00012805,2]
[330649987,1719688232426,-186.21,0.00012808,2]
[330649988,1719688232436,-150.31,0.00012823,2]
[330649989,1719688232445,-6463.0961,0.00013071,2]
[330649990,1719688232455,-19616.0125754,0.00013128,2]
[330649991,1719688232464,-300.0,0.00013252,2]
[330649992,1719688232474,-150.0,0.00013252,2]
[330649993,1719688232484,-150.0,0.00013252,2]
[330649994,1719688232493,-150.0,0.00013352,2]
[330649995,1719688232503,-170.86,0.00013376,2]
[330649996,1719688232512,-172.41,0.00013434,2]
[330649997,1719688232522,-285.75148297,0.00013476,2]
[330649998,1719688232531,-27772.4259,0.00013488,2]
[330649999,1719688232541,-1254.7553,0.00013488,2]
[330650000,1719688232550,-4050.7381,0.00013488,2]
[330650001,1719688232560,-15389.3223,0.00013488,2]
[330650002,1719688232570,-1000.0,0.00013506,2]
[330650003,1719688232580,-500.0,0.00013506,2]
[330650004,1719688232590,-500.0,0.00013506,2]
[330650005,1719688232599,-800.0,0.00013506,2]
[330650006,1719688232608,-500.0,0.00013506,2]
[330650007,1719688232617,-1620.14428173,0.00013516,2]
[330650008,1719688232626,-122905.6922,0.00013588,2]
[330650009,1719688232640,-150.0,0.000136,2]
[330650010,1719688232650,-181.04384057,0.00013683,2]
[330650011,1719688232659,-19458.2289,0.00013686,2]
[330650012,1719688232669,-2413.98,0.00013698,3]
[330650013,1719688232679,-2549.87,0.00013698,3]
[330650014,1719688232688,-164.15,0.00013699,2]
[330650015,1719688232697,-224.44,0.00013699,2]
[330650016,1719688232707,-171.84216993,0.000137,2]
[330650017,1719688232715,-1055.03,0.00013726,2]
[330650018,1719688232727,-181.04384057,0.00013735,2]
[330650019,1719688232737,-234.1447,0.0001374,2]
[330650020,1719688232746,-150.0,0.00013763,2]
[330650021,1719688232757,-182.92909601,0.00013775,2]
[330650022,1719688232767,-513.52,0.0001378,3]
[330650023,1719688232777,-2258.23,0.0001378,3]
[330650024,1719688232786,-3208.87,0.0001378,3]
[330650025,1719688232795,-43.54020374,0.0001378,3]
[330650026,1719688232873,-442.73989055,0.00012302,2]
[330650027,1719688232883,-456.45979626,0.0001378,3]
[330650028,1719688232893,-2898.82,0.0001378,3]
[330650029,1719688232903,-2146.55,0.0001378,3]
[330650030,1719688232912,-2269.8612033,0.0001378,3]
[330650031,1719688232924,-4378.2787967,0.0001378,3]
[330650032,1719688232933,-1323.74,0.0001378,3]
[330650033,1719688232942,-7360.7812033,0.00013781,2]
[330650034,1719688232954,-756.03810701,0.00013781,2]
[330650035,1719688232965,-5287.45538079,0.00013781,2]
[330650036,1719688232976,-5329.45931921,0.00013781,2]
[330650037,1719688232986,-4071.77,0.00013783,3]
[330650038,1719688232995,-2317.13917648,0.00013783,3]
[330650039,1719688233006,-269.12884661,0.00013783,3]
[330650040,1719688233017,-1579.01197691,0.00013783,3]
[330650041,1719688233027,-4017.50778807,0.00013783,3]
[330650042,1719688233070,-868.81,0.00013698,3]
[330650043,1719688233081,-167.16808265,0.00013783,3]
[330650044,1719688233093,-2200.0,0.00013783,3]
[330650045,1719688233104,-3421.26789501,0.00013783,3]
[330650046,1719688237325,206.12734629,0.00011098,2]
[330650048,1719688238144,-378.6472136,0.00011197,2]
[330650049,1719688238155,-1090.62168535,0.0001378,3]
[330650050,1719688238168,-682.79831465,0.0001378,3]
[330650051,1719688238179,-3991.73,0.0001378,3]
[330650052,1719688238190,-1015.21623427,0.00013783,3]
[330650053,1719688238200,-14329.38961521,0.00013783,3]
[330650054,1719688238213,-7584.27038479,0.00013783,3]
[330650055,1719688238223,-711.13547637,0.00013783,3]
[330650131,1719688238986,-326.355,0.00013783,3]
[330650167,1719688240333,-342.30435035,0.00013783,3]
[330650168,1719688240345,-1677.4,0.00013783,3]
[330650169,1719688240356,-96.92517328,0.00013783,3]
[330650170,1719688240366,-3188.57,0.00013783,3]
[330650171,1719688240376,-1208.98,0.00013783,3]
[330650172,1719688240386,-661.73369004,0.00013783,3]
[330650173,1719688240398,-994.82690771,0.00013783,3]
[330650174,1719688240505,-3226.17940225,0.00013783,3]
[330650175,1719688240515,-5034.13,0.00013783,3]
[330650176,1719688240525,-2591.01,0.00013783,3]
[330650177,1719688240537,-4594.1367,0.00013783,2]
[330650178,1719688240547,-2470.6745,0.00013783,2]
[330650179,1719688240559,-788.86,0.00013784,3]
[330650180,1719688240569,-534.19,0.00013784,3]
[330650181,1719688240578,-500.0,0.00013784,3]
[330650182,1719688240588,-754.67,0.00013784,3]
[330650183,1719688240598,-500.0,0.00013784,3]
[330650184,1719688240607,-1423.46,0.00013784,3]
[330650185,1719688240617,-906.83,0.00013784,3]
[330650186,1719688240626,-500.0,0.00013784,3]
[330650187,1719688240640,-500.0,0.00013784,3]
[330650188,1719688240650,-1329.7,0.00013784,3]
[330650189,1719688240660,-554.39,0.00013784,3]
[330650190,1719688240670,-500.0,0.00013784,3]
[330650191,1719688240679,-627.7,0.00013784,3]
[330650192,1719688240689,-314.02858654,0.00013784,3]
[330650193,1719688240699,-830.6,0.00013784,3]
[330650194,1719688240708,-1032.79,0.00013784,3]
[330650195,1719688240718,-942.88,0.00013784,3]
[330650196,1719688240731,-800.4,0.00013784,3]
[330650197,1719688240741,-1239.16,0.00013784,3]
[330650198,1719688240750,-500.0,0.00013784,3]
[330650199,1719688240760,-500.0,0.00013784,3]
[330650200,1719688240769,-2313.73,0.00013784,3]
[330650201,1719688240779,-1141.49,0.00013784,3]
[330650202,1719688240789,-500.0,0.00013784,3]
[330650203,1719688240798,-500.0,0.00013784,3]
[330650204,1719688240808,-1140.84,0.00013784,3]
[330650205,1719688240818,-686.4,0.00013784,3]
[330650206,1719688240828,-500.0,0.00013784,3]
[330650207,1719688240838,-1353.59,0.00013784,3]
[330650208,1719688240848,-2123.12,0.00013784,3]
[330650209,1719688240858,-792.57,0.00013784,3]
[330650210,1719688240868,-500.0,0.00013784,3]
[330650211,1719688240878,-688.91,0.00013784,3]
[330650212,1719688240887,-500.0,0.00013784,3]
[330650213,1719688240897,-500.0,0.00013784,3]
[330650214,1719688240906,-735.94799115,0.00013784,3]
[330650215,1719688240920,-73.64200885,0.00013784,3]
[330650216,1719688240929,-2195.47,0.00013784,3]
[330650217,1719688240940,-430.88799115,0.00013784,3]
[330650218,1719688243115,-1332.11,0.00013698,3]
[330650219,1719688243125,-1580.63200885,0.00013784,3]
[330650220,1719688243135,-500.0,0.00013784,3]
[330650221,1719688243147,-1600.69,0.00013784,3]
[330650222,1719688243156,-500.0,0.00013784,3]
[330650223,1719688243165,-1041.09,0.00013784,3]
[330650224,1719688243175,-500.0,0.00013784,3]
[330650225,1719688243185,-500.0,0.00013784,3]
[330650226,1719688243194,-2557.23,0.00013784,3]
[330650227,1719688243204,-960.65,0.00013784,3]
[330650228,1719688243214,-500.0,0.00013784,3]
[330650229,1719688243223,-500.0,0.00013784,3]
[330650230,1719688243233,-1478.55,0.00013784,3]
[330650231,1719688243243,-500.0,0.00013784,3]
[330650232,1719688243253,-500.0,0.00013784,3]
[330650233,1719688243274,-500.0,0.00013784,3]
[330650234,1719688243284,-500.0,0.00013784,3]
[330650235,1719688243294,-500.0,0.00013784,3]
[330650236,1719688243303,-500.0,0.00013784,3]
[330650237,1719688243313,-500.0,0.00013784,3]
[330650238,1719688243322,-1400.26,0.00013784,3]
[330650239,1719688243332,-1022.34,0.00013784,3]
[330650240,1719688243342,-1293.31,0.00013784,3]
[330650241,1719688243352,-651.51,0.00013784,3]
[330650242,1719688243362,-500.0,0.00013784,3]
[330650243,1719688243372,-500.0,0.00013784,3]
[330650244,1719688243381,-500.0,0.00013784,3]
[330650245,1719688243391,-1042.29,0.00013784,3]
[330650246,1719688243401,-1702.87,0.00013784,3]
[330650247,1719688243410,-500.0,0.00013784,3]
[330650248,1719688243420,-1962.32,0.00013784,3]
[330650249,1719688243430,-1481.39,0.00013784,3]
[330650250,1719688243439,-500.0,0.00013784,3]
[330650251,1719688243449,-500.0,0.00013784,3]
[330650252,1719688243459,-500.0,0.00013784,3]
[330650254,1719688243468,-500.0,0.00013784,3]
[330650255,1719688243477,-500.0,0.00013784,3]
[330650256,1719688243487,-579.72,0.00013784,3]
[330650257,1719688243496,-500.0,0.00013784,3]
[330650258,1719688243505,-834.32,0.00013784,3]
[330650259,1719688243515,-500.0,0.00013784,3]
[330650260,1719688243525,-500.0,0.00013784,3]
[330650261,1719688243536,-500.0,0.00013784,3]
[330650262,1719688243545,-500.0,0.00013784,3]
[330650263,1719688243555,-2168.27,0.00013784,3]
[330650264,1719688243564,-600.56,0.00013784,3]
[330650265,1719688243574,-500.0,0.00013784,3]
[330650266,1719688243583,-1049.25,0.00013784,3]
[330650267,1719688243592,-2249.41,0.00013784,3]
[330650268,1719688243602,-500.0,0.00013784,3]
[330650269,1719688243611,-556.48,0.00013784,3]
[330650270,1719688243622,-500.0,0.00013784,3]
[330650271,1719688243634,-540.21,0.00013784,3]
[330650272,1719688243645,-500.0,0.00013784,3]
[330650273,1719688243656,-1610.86,0.00013784,3]
[330650274,1719688243666,-500.0,0.00013784,3]
[330650275,1719688243676,-500.0,0.00013784,3]
[330650276,1719688243687,-500.0,0.00013784,3]
[330650277,1719688243698,-736.3,0.00013784,3]
[330650278,1719688243708,-500.0,0.00013784,3]
[330650279,1719688243722,-1761.35,0.00013784,3]
[330650280,1719688243734,-680.01,0.00013784,3]
[330650281,1719688243743,-517.17,0.00013784,3]
[330650282,1719688243753,-500.0,0.00013784,3]
[330650283,1719688243763,-1505.08,0.00013784,3]
[330650284,1719688243773,-500.0,0.00013784,3]
[330650285,1719688243783,-891.82,0.00013784,3]
[330650286,1719688243792,-500.0,0.00013784,3]
[330650287,1719688243812,-500.0,0.00013784,2]
[330650288,1719688243822,-1505.8,0.00013784,3]
[330650290,1719688243832,-529.12,0.00013784,3]
[330650291,1719688243842,-1216.96,0.00013784,3]
[330650292,1719688243851,-1267.97,0.00013784,3]
[330650293,1719688243860,-500.0,0.00013784,3]
[330650294,1719688243870,-6752.84,0.00013784,3]
[330650295,1719688243879,-500.0,0.00013784,3]
[330650296,1719688243889,-500.0,0.00013784,3]
[330650297,1719688243899,-1144.5,0.00013784,3]
[330650298,1719688243908,-500.0,0.00013784,3]
[330650299,1719688243920,-1236.02,0.00013784,3]
[330650300,1719688243930,-500.0,0.00013784,3]
[330650301,1719688243941,-500.0,0.00013784,3]
[330650302,1719688243951,-1001.9,0.00013784,3]
[330650303,1719688243960,-516.45,0.00013784,3]
[330650304,1719688243970,-500.0,0.00013784,3]
[330650305,1719688243980,-500.0,0.00013784,3]
[330650306,1719688243989,-1205.28,0.00013784,3]
[330650307,1719688243999,-500.0,0.00013784,3]
[330650308,1719688244008,-2070.31,0.00013784,3]
[330650309,1719688244018,-500.0,0.00013784,3]
[330650310,1719688244027,-500.0,0.00013784,3]
[330650311,1719688244038,-789.29,0.00013784,3]
[330650312,1719688244048,-500.0,0.00013784,3]
[330650313,1719688244057,-891.52,0.00013784,3]
[330650314,1719688244068,-634.53,0.00013784,3]
[330650315,1719688244079,-500.0,0.00013784,3]
[330650316,1719688244089,-520.35,0.00013784,3]
[330650317,1719688244099,-500.0,0.00013784,3]
[330650318,1719688244109,-1579.83,0.00013784,3]
[330650319,1719688244119,-500.0,0.00013784,3]
[330650320,1719688244129,-500.0,0.00013784,3]
[330650321,1719688244141,-774.89,0.00013784,3]
[330650322,1719688244152,-500.0,0.00013784,3]
[330650323,1719688244161,-500.0,0.00013784,3]
[330650324,1719688244171,-500.0,0.00013784,3]
[330650325,1719688244180,-703.11,0.00013784,3]
[330650326,1719688244190,-587.03,0.00013784,3]
[330650327,1719688244199,-500.0,0.00013784,3]
[330650328,1719688244209,-500.0,0.00013784,3]
[330650329,1719688244219,-500.0,0.00013784,3]
[330650330,1719688244228,-500.0,0.00013784,3]
[330650331,1719688244238,-500.0,0.00013784,3]
[330650332,1719688244249,-881.06,0.00013784,3]
[330650333,1719688244259,-500.0,0.00013784,3]
[330650334,1719688244269,-1414.01,0.00013784,3]
[330650335,1719688244279,-1952.32,0.00013784,3]
[330650336,1719688244292,-1325.22,0.00013784,3]
[330650337,1719688244302,-6267.59,0.00013784,3]
[330650338,1719688244319,-976.52,0.00013784,3]
[330650339,1719688244328,-500.0,0.00013784,3]
[330650340,1719688244339,-1529.55,0.00013784,3]
[330650341,1719688244349,-500.0,0.00013784,3]
[330650342,1719688244360,-846.18,0.00013784,3]
[330650343,1719688244371,-500.0,0.00013784,3]
[330650344,1719688244381,-500.0,0.00013784,3]
[330650345,1719688244392,-1993.86,0.00013784,3]
[330650346,1719688244403,-500.0,0.00013784,3]
[330650347,1719688244413,-534.07,0.00013784,3]
[330650348,1719688244424,-500.0,0.00013784,3]
[330650349,1719688244435,-500.0,0.00013784,3]
[330650350,1719688244445,-1731.4,0.00013784,3]
[330650351,1719688244455,-500.0,0.00013784,3]
[330650352,1719688244467,-500.0,0.00013784,3]
[330650353,1719688244478,-1345.82,0.00013784,3]
[330650354,1719688244488,-529.64,0.00013784,3]
[330650355,1719688244498,-584.57,0.00013784,3]
[330650356,1719688244509,-500.0,0.00013784,3]
[330650357,1719688244520,-1444.12,0.00013784,3]
[330650358,1719688244533,-2056.69,0.00013784,3]